[Event "Late-Titled-Tuesday-Blitz-September-26-2023"]
[Site "Chess.com"]
[Date "2023.09.26"]
[Round "9"]
[White "krzyzan94"]
[Black "JoseRemolar"]
[Result "1-0"]
[WhiteElo "2786"]
[BlackElo "2427"]
[TimeControl "180+1"]
[EndTime "15:41:09 PDT"]
[Termination "krzyzan94 won by resignation"]

1. d4 {[%clk 0:03:00.9]} 1... Nf6 {[%clk 0:02:58.6]} 2. Nf3 {[%clk 0:02:57.6]}
2... g6 {[%clk 0:02:58.1]} 3. g3 {[%clk 0:02:54.5]} 3... Bg7 {[%clk 0:02:55.2]}
4. Bg2 {[%clk 0:02:54.7]} 4... O-O {[%clk 0:02:51.8]} 5. c4 {[%clk 0:02:53.1]}
5... d6 {[%clk 0:02:39.6]} 6. O-O {[%clk 0:02:53.1]} 6... Nc6 {[%clk 0:02:36.7]}
7. Nc3 {[%clk 0:02:51.7]} 7... a6 {[%clk 0:02:37.1]} 8. d5 {[%clk 0:02:48.2]}
8... Na5 {[%clk 0:02:37.2]} 9. b3 {[%clk 0:02:46.2]} 9... c5 {[%clk 0:02:26.9]}
10. dxc6 {[%clk 0:02:46.2]} 10... Nxc6 {[%clk 0:02:19.8]} 11. Bb2 {[%clk
0:02:46.4]} 11... Rb8 {[%clk 0:02:19.6]} 12. Rc1 {[%clk 0:02:40.9]} 12... Bd7
{[%clk 0:02:19.8]} 13. Qd2 {[%clk 0:02:31.8]} 13... b5 {[%clk 0:02:04.1]} 14.
cxb5 {[%clk 0:01:57]} 14... axb5 {[%clk 0:02:05]} 15. Nd5 {[%clk 0:01:53.2]}
15... Ne4 {[%clk 0:01:36.5]} 16. Qc2 {[%clk 0:01:52.9]} 16... Bxb2 {[%clk
0:01:36.7]} 17. Qxb2 {[%clk 0:01:52.8]} 17... e6 {[%clk 0:01:35.3]} 18. Ne3
{[%clk 0:01:44.4]} 18... d5 {[%clk 0:01:30.3]} 19. Ng4 {[%clk 0:01:40.7]} 19...
f6 {[%clk 0:01:17.6]} 20. Nd4 {[%clk 0:01:21.8]} 20... Nxd4 {[%clk 0:00:29.8]}
21. Qxd4 {[%clk 0:01:22.7]} 21... Nd6 {[%clk 0:00:10.3]} 22. Ne3 {[%clk
0:00:56.2]} 22... Rc8 {[%clk 0:00:10.5]} 23. Qa7 {[%clk 0:00:43.5]} 23... Ra8
{[%clk 0:00:06.3]} 24. Qc5 {[%clk 0:00:35.7]} 24... Qe7 {[%clk 0:00:06.7]} 25.
Nxd5 {[%clk 0:00:19.8]} 25... exd5 {[%clk 0:00:07.6]} 26. Bxd5+ {[%clk
0:00:20.2]} 26... Kg7 {[%clk 0:00:08.1]} 27. Bxa8 {[%clk 0:00:21.1]} 27... Rxa8
{[%clk 0:00:08.6]} 28. Rfd1 {[%clk 0:00:21.3]} 28... Rc8 {[%clk 0:00:07.5]} 29.
Qa3 {[%clk 0:00:16.8]} 29... Rxc1 {[%clk 0:00:02.6]} 30. Qxc1 {[%clk 0:00:17.7]}
30... Nf5 {[%clk 0:00:02.2]} 31. Qc7 {[%clk 0:00:17.7]} 31... Be6 {[%clk
0:00:02.6]} 32. Qxe7+ {[%clk 0:00:16.8]} 32... Nxe7 {[%clk 0:00:03.5]} 33. e4
{[%clk 0:00:16.1]} 33... Kf7 {[%clk 0:00:03.9]} 34. Rd6 {[%clk 0:00:15.9]} 34...
Nc8 {[%clk 0:00:03.8]} 35. Rc6 {[%clk 0:00:14.3]} 35... Ke7 {[%clk 0:00:04.5]}
36. Rc7+ {[%clk 0:00:14.3]} 36... Bd7 {[%clk 0:00:04]} 37. f4 {[%clk 0:00:13.7]}
37... Kd6 {[%clk 0:00:04.5]} 38. Rc2 {[%clk 0:00:13]} 38... Bc6 {[%clk
0:00:04.3]} 39. Kf2 {[%clk 0:00:12.4]} 39... Bxe4 {[%clk 0:00:04]} 40. Rxc8
{[%clk 0:00:11.6]} 1-0

[Event "Late-Titled-Tuesday-Blitz-September-26-2023"]
[Site "Chess.com"]
[Date "2023.09.26"]
[Round "9"]
[White "HajiyevKanan"]
[Black "Journey_to_GrandMaster_YT"]
[Result "0-1"]
[WhiteElo "2492"]
[BlackElo "2594"]
[TimeControl "180+1"]
[EndTime "15:41:12 PDT"]
[Termination "Journey_to_GrandMaster_YT won by checkmate"]

1. d4 {[%clk 0:03:00.9]} 1... d6 {[%clk 0:03:00.9]} 2. Nf3 {[%clk 0:03:00.5]}
2... Nf6 {[%clk 0:03:01.4]} 3. g3 {[%clk 0:03:01.1]} 3... Nbd7 {[%clk
0:03:01.3]} 4. Bg2 {[%clk 0:03:01.7]} 4... e5 {[%clk 0:03:02.2]} 5. c4 {[%clk
0:03:00.5]} 5... c6 {[%clk 0:03:02.5]} 6. Nc3 {[%clk 0:02:59.7]} 6... e4 {[%clk
0:03:01.6]} 7. Ng5 {[%clk 0:02:54.9]} 7... d5 {[%clk 0:03:02.5]} 8. cxd5 {[%clk
0:02:55.5]} 8... cxd5 {[%clk 0:03:03.3]} 9. f3 {[%clk 0:02:55.7]} 9... exf3
{[%clk 0:03:03.6]} 10. Bxf3 {[%clk 0:02:45]} 10... Nb6 {[%clk 0:03:00.5]} 11.
O-O {[%clk 0:02:38.4]} 11... h6 {[%clk 0:02:58.7]} 12. e4 {[%clk 0:01:51.8]}
12... hxg5 {[%clk 0:02:53.4]} 13. e5 {[%clk 0:01:51.7]} 13... Ng8 {[%clk
0:02:31.5]} 14. Bh5 {[%clk 0:01:23.1]} 14... Be6 {[%clk 0:02:24.1]} 15. Qf3
{[%clk 0:01:16.7]} 15... Nh6 {[%clk 0:02:05.6]} 16. h4 {[%clk 0:01:15.6]} 16...
Be7 {[%clk 0:02:03.2]} 17. Nb5 {[%clk 0:01:03.3]} 17... g6 {[%clk 0:01:26.3]}
18. hxg5 {[%clk 0:00:56]} 18... Bxg5 {[%clk 0:01:23]} 19. Nd6+ {[%clk
0:00:56.2]} 19... Kd7 {[%clk 0:01:22.6]} 20. Nxb7 {[%clk 0:00:26.4]} 20... Qe7
{[%clk 0:00:53.5]} 21. Nc5+ {[%clk 0:00:26.2]} 21... Ke8 {[%clk 0:00:48.3]} 22.
Nxe6 {[%clk 0:00:15.3]} 22... Bxc1 {[%clk 0:00:43.1]} 23. Ng7+ {[%clk
0:00:07.6]} 23... Kf8 {[%clk 0:00:41.9]} 24. Bxg6 {[%clk 0:00:05.5]} 24... Kxg7
{[%clk 0:00:39.8]} 25. Raxc1 {[%clk 0:00:04.3]} 25... fxg6 {[%clk 0:00:32.6]}
26. Rc6 {[%clk 0:00:04.7]} 26... Raf8 {[%clk 0:00:29.1]} 27. Rf6 {[%clk
0:00:04.5]} 27... Nf5 {[%clk 0:00:23.8]} 28. Qg4 {[%clk 0:00:04.5]} 28... Rxf6
{[%clk 0:00:23.3]} 29. exf6+ {[%clk 0:00:04.1]} 29... Qxf6 {[%clk 0:00:23.5]}
30. Rf4 {[%clk 0:00:04.5]} 30... Nc8 {[%clk 0:00:19.8]} 31. Qe2 {[%clk
0:00:04.1]} 31... Ncd6 {[%clk 0:00:19.8]} 32. Qa6 {[%clk 0:00:03.3]} 32... Re8
{[%clk 0:00:15.9]} 33. Qxa7+ {[%clk 0:00:03.6]} 33... Re7 {[%clk 0:00:16.1]} 34.
Qa6 {[%clk 0:00:04.3]} 34... Ne4 {[%clk 0:00:15.6]} 35. Qf1 {[%clk 0:00:02.8]}
35... Nexg3 {[%clk 0:00:15.6]} 36. Qf3 {[%clk 0:00:03.3]} 36... Qg5 {[%clk
0:00:14.6]} 37. Rg4 {[%clk 0:00:02.9]} 37... Qc1+ {[%clk 0:00:14.1]} 38. Kg2
{[%clk 0:00:03.2]} 38... Re2+ {[%clk 0:00:13.8]} 39. Kh3 {[%clk 0:00:02.1]}
39... Qh6+ {[%clk 0:00:11.8]} 40. Rh4 {[%clk 0:00:01.6]} 40... Qxh4# {[%clk
0:00:11.7]} 0-1

[Event "Late-Titled-Tuesday-Blitz-September-26-2023"]
[Site "Chess.com"]
[Date "2023.09.26"]
[Round "9"]
[White "Dacean99"]
[Black "Defenstrator"]
[Result "0-1"]
[WhiteElo "2538"]
[BlackElo "2404"]
[TimeControl "180+1"]
[EndTime "15:41:13 PDT"]
[Termination "Defenstrator won by resignation"]

1. d4 {[%clk 0:02:56.7]} 1... g6 {[%clk 0:02:57.3]} 2. Nf3 {[%clk 0:02:55.5]}
2... Bg7 {[%clk 0:02:57.2]} 3. h4 {[%clk 0:02:54.5]} 3... Nf6 {[%clk 0:02:55.6]}
4. Nc3 {[%clk 0:02:53]} 4... d5 {[%clk 0:02:46.6]} 5. Bg5 {[%clk 0:02:51.2]}
5... Ne4 {[%clk 0:02:41.8]} 6. e3 {[%clk 0:02:46.8]} 6... c5 {[%clk 0:02:32]} 7.
Bb5+ {[%clk 0:02:37.7]} 7... Nc6 {[%clk 0:02:28.8]} 8. Ne5 {[%clk 0:02:29.9]}
8... Nxc3 {[%clk 0:02:12]} 9. bxc3 {[%clk 0:02:08.6]} 9... Qa5 {[%clk
0:02:05.5]} 10. Bxc6+ {[%clk 0:02:05.4]} 10... bxc6 {[%clk 0:02:04.9]} 11. O-O
{[%clk 0:02:03.8]} 11... f6 {[%clk 0:02:02.9]} 12. Nxc6 {[%clk 0:01:51.7]} 12...
Qc7 {[%clk 0:01:52.5]} 13. Nxe7 {[%clk 0:01:51]} 13... Qxe7 {[%clk 0:01:49.6]}
14. Bf4 {[%clk 0:01:50.7]} 14... Be6 {[%clk 0:01:39.5]} 15. c4 {[%clk
0:01:45.4]} 15... O-O {[%clk 0:01:28.5]} 16. cxd5 {[%clk 0:01:40.9]} 16... Bxd5
{[%clk 0:01:27.6]} 17. Qd3 {[%clk 0:01:34.6]} 17... cxd4 {[%clk 0:01:15.2]} 18.
Qxd4 {[%clk 0:01:33.3]} 18... Qe4 {[%clk 0:01:13]} 19. Qxe4 {[%clk 0:01:27]}
19... Bxe4 {[%clk 0:01:13.3]} 20. c4 {[%clk 0:01:26.6]} 20... Rfc8 {[%clk
0:01:07]} 21. Rac1 {[%clk 0:01:24.8]} 21... Bd3 {[%clk 0:01:06.6]} 22. Rfd1
{[%clk 0:01:23.7]} 22... Rxc4 {[%clk 0:01:05.9]} 23. Rxc4 {[%clk 0:01:17.7]}
23... Bxc4 {[%clk 0:01:06.7]} 24. a4 {[%clk 0:01:16.9]} 24... Bb3 {[%clk
0:01:02]} 25. Rd4 {[%clk 0:01:15.3]} 25... a5 {[%clk 0:00:58]} 26. Bc7 {[%clk
0:01:13.9]} 26... f5 {[%clk 0:00:56.3]} 27. Rf4 {[%clk 0:00:55.7]} 27... Rc8
{[%clk 0:00:54.4]} 28. Bxa5 {[%clk 0:00:43.7]} 28... Rc1+ {[%clk 0:00:50.5]} 29.
Kh2 {[%clk 0:00:44.3]} 29... Be5 {[%clk 0:00:50.8]} 30. Bd2 {[%clk 0:00:44.1]}
30... Bxf4+ {[%clk 0:00:50.3]} 31. exf4 {[%clk 0:00:43.2]} 31... Rc2 {[%clk
0:00:48.1]} 32. Be3 {[%clk 0:00:43.3]} 32... Bxa4 {[%clk 0:00:48.1]} 33. h5
{[%clk 0:00:42.6]} 33... gxh5 {[%clk 0:00:46.5]} 34. Kg3 {[%clk 0:00:42.8]}
34... Bc6 {[%clk 0:00:45.7]} 35. Kh4 {[%clk 0:00:42.9]} 35... Bxg2 {[%clk
0:00:45.7]} 36. Kxh5 {[%clk 0:00:43.1]} 36... Be4 {[%clk 0:00:45.6]} 37. Kh6
{[%clk 0:00:43.1]} 37... Ra2 {[%clk 0:00:44.1]} 38. Kg5 {[%clk 0:00:38.4]} 38...
Ra1 {[%clk 0:00:43.9]} 39. Kf6 {[%clk 0:00:34.5]} 39... Rg1 {[%clk 0:00:42.3]}
40. Ke5 {[%clk 0:00:30.2]} 40... h5 {[%clk 0:00:39.4]} 41. Bd4 {[%clk
0:00:30.3]} 41... h4 {[%clk 0:00:31.8]} 42. f3 {[%clk 0:00:30.4]} 42... Re1
{[%clk 0:00:32]} 43. Bf2 {[%clk 0:00:27.2]} 43... h3 {[%clk 0:00:26.7]} 44. Bxe1
{[%clk 0:00:25.8]} 44... h2 {[%clk 0:00:26.8]} 45. fxe4 {[%clk 0:00:26.3]} 45...
h1=Q {[%clk 0:00:24.4]} 46. Kxf5 {[%clk 0:00:22.5]} 46... Qxe1 {[%clk
0:00:24.4]} 47. e5 {[%clk 0:00:23.1]} 47... Kf7 {[%clk 0:00:24.2]} 48. Kg5
{[%clk 0:00:22]} 48... Qe4 {[%clk 0:00:23.1]} 49. Kg4 {[%clk 0:00:21.1]} 49...
Ke6 {[%clk 0:00:22.8]} 50. Kg5 {[%clk 0:00:20.6]} 50... Qf5+ {[%clk 0:00:23.2]}
0-1

[Event "Late-Titled-Tuesday-Blitz-September-26-2023"]
[Site "Chess.com"]
[Date "2023.09.26"]
[Round "9"]
[White "Bilan_Danila"]
[Black "karinachess1"]
[Result "1-0"]
[WhiteElo "2521"]
[BlackElo "2613"]
[TimeControl "180+1"]
[EndTime "15:41:15 PDT"]
[Termination "Bilan_Danila won on time"]

1. d4 {[%clk 0:02:57.7]} 1... Nf6 {[%clk 0:02:59.9]} 2. Nf3 {[%clk 0:02:56.3]}
2... e6 {[%clk 0:03:00.3]} 3. g3 {[%clk 0:02:55.7]} 3... d5 {[%clk 0:03:01]} 4.
Bg2 {[%clk 0:02:55.9]} 4... b5 {[%clk 0:03:01.4]} 5. O-O {[%clk 0:02:56.3]} 5...
Be7 {[%clk 0:03:01.7]} 6. a4 {[%clk 0:02:57.1]} 6... b4 {[%clk 0:03:01.8]} 7. c4
{[%clk 0:02:57.3]} 7... O-O {[%clk 0:02:52.3]} 8. b3 {[%clk 0:02:50.1]} 8... c5
{[%clk 0:02:45.1]} 9. cxd5 {[%clk 0:02:43]} 9... exd5 {[%clk 0:02:38.4]} 10.
dxc5 {[%clk 0:02:34.1]} 10... Bxc5 {[%clk 0:02:28.5]} 11. Bb2 {[%clk 0:02:27]}
11... Nc6 {[%clk 0:02:14.5]} 12. Nd4 {[%clk 0:02:03.7]} 12... Bb7 {[%clk
0:02:03.1]} 13. Nxc6 {[%clk 0:02:00.3]} 13... Bxc6 {[%clk 0:02:04]} 14. Nd2
{[%clk 0:02:01]} 14... Qd6 {[%clk 0:01:55.9]} 15. Rc1 {[%clk 0:01:54.9]} 15...
Nd7 {[%clk 0:01:32.9]} 16. Ne4 {[%clk 0:00:38.1]} 16... dxe4 {[%clk 0:01:18]}
17. Qxd6 {[%clk 0:00:37.1]} 17... Bxd6 {[%clk 0:01:18.9]} 18. Rxc6 {[%clk
0:00:37.7]} 18... Be5 {[%clk 0:01:14.4]} 19. Bxe5 {[%clk 0:00:35.5]} 19... Nxe5
{[%clk 0:01:15.3]} 20. Rc5 {[%clk 0:00:35.6]} 20... Rfe8 {[%clk 0:00:39.7]} 21.
Bxe4 {[%clk 0:00:29.9]} 21... Rad8 {[%clk 0:00:39.1]} 22. Bd5 {[%clk 0:00:20.7]}
22... Rd7 {[%clk 0:00:25.1]} 23. e4 {[%clk 0:00:11.8]} 23... Red8 {[%clk
0:00:17.8]} 24. Kg2 {[%clk 0:00:11.1]} 24... g6 {[%clk 0:00:06.4]} 25. f4 {[%clk
0:00:10]} 25... Ng4 {[%clk 0:00:06.7]} 26. Re1 {[%clk 0:00:08.8]} 26... Nf6
{[%clk 0:00:06.3]} 27. Rb5 {[%clk 0:00:04.1]} 27... Nxd5 {[%clk 0:00:05]} 28.
exd5 {[%clk 0:00:05]} 28... Rxd5 {[%clk 0:00:05.9]} 29. Rxb4 {[%clk 0:00:03.1]}
29... Rd2+ {[%clk 0:00:06.1]} 30. Kf3 {[%clk 0:00:03.1]} 30... Rb2 {[%clk
0:00:04.5]} 31. Re7 {[%clk 0:00:02.1]} 31... Rd3+ {[%clk 0:00:02.4]} 32. Re3
{[%clk 0:00:02.3]} 32... Rdxb3 {[%clk 0:00:03.3]} 33. Rbxb3 {[%clk 0:00:02.4]}
33... Rxh2 {[%clk 0:00:03.1]} 34. Rb7 {[%clk 0:00:02.2]} 1-0

[Event "Late-Titled-Tuesday-Blitz-September-26-2023"]
[Site "Chess.com"]
[Date "2023.09.26"]
[Round "9"]
[White "dorpato"]
[Black "nitpicker"]
[Result "1-0"]
[WhiteElo "2045"]
[BlackElo "2233"]
[TimeControl "180+1"]
[EndTime "15:41:15 PDT"]
[Termination "dorpato won on time"]

1. e4 {[%clk 0:03:00.9]} 1... c5 {[%clk 0:02:59.5]} 2. Nc3 {[%clk 0:03:00.4]}
2... Nc6 {[%clk 0:02:58.5]} 3. g3 {[%clk 0:03:00.4]} 3... g6 {[%clk 0:02:54.4]}
4. Bg2 {[%clk 0:03:00.5]} 4... Bg7 {[%clk 0:02:55.1]} 5. d3 {[%clk 0:03:00.5]}
5... d6 {[%clk 0:02:51.5]} 6. Be3 {[%clk 0:03:00.4]} 6... Nf6 {[%clk 0:02:46.5]}
7. h3 {[%clk 0:02:55.2]} 7... O-O {[%clk 0:02:46.9]} 8. Qd2 {[%clk 0:02:55.5]}
8... Nd4 {[%clk 0:02:43.1]} 9. Nce2 {[%clk 0:02:48.5]} 9... Ne8 {[%clk 0:02:23]}
10. c3 {[%clk 0:02:45.8]} 10... Nxe2 {[%clk 0:02:04.1]} 11. Nxe2 {[%clk
0:02:46.7]} 11... Nc7 {[%clk 0:02:03.7]} 12. Bh6 {[%clk 0:02:45.5]} 12... d5
{[%clk 0:01:51.5]} 13. h4 {[%clk 0:02:40.9]} 13... dxe4 {[%clk 0:01:35.7]} 14.
Bxe4 {[%clk 0:02:39.4]} 14... f5 {[%clk 0:01:25.2]} 15. h5 {[%clk 0:02:17.1]}
15... fxe4 {[%clk 0:01:03.7]} 16. Bxg7 {[%clk 0:02:14.3]} 16... Kxg7 {[%clk
0:00:38]} 17. hxg6 {[%clk 0:02:12.7]} 17... hxg6 {[%clk 0:00:28.9]} 18. Qh6+
{[%clk 0:02:09.4]} 18... Kf7 {[%clk 0:00:29]} 19. Qh7+ {[%clk 0:02:08.3]} 19...
Ke6 {[%clk 0:00:25.1]} 20. Qxg6+ {[%clk 0:02:02.2]} 20... Rf6 {[%clk 0:00:25.2]}
21. Nf4+ {[%clk 0:01:55]} 21... Kd6 {[%clk 0:00:23.7]} 22. Qxe4 {[%clk
0:01:44.2]} 22... Bf5 {[%clk 0:00:23.5]} 23. Qe3 {[%clk 0:01:35.1]} 23... e5
{[%clk 0:00:20]} 24. Nh5 {[%clk 0:01:30.3]} 24... Rg6 {[%clk 0:00:18.5]} 25.
O-O-O {[%clk 0:01:24.4]} 25... Qg5 {[%clk 0:00:18.2]} 26. f4 {[%clk 0:01:19.7]}
26... exf4 {[%clk 0:00:16.6]} 27. gxf4 {[%clk 0:01:09.4]} 27... Qe7 {[%clk
0:00:15.3]} 28. Qf3 {[%clk 0:01:05.1]} 28... Bg4 {[%clk 0:00:14.1]} 29. Qxb7
{[%clk 0:00:58.4]} 29... Bxd1 {[%clk 0:00:13.1]} 30. Rxd1 {[%clk 0:00:58]} 30...
Re8 {[%clk 0:00:11.1]} 31. f5 {[%clk 0:00:53.6]} 31... Rg4 {[%clk 0:00:09.9]}
32. Qxa7 {[%clk 0:00:50.6]} 32... Nd5 {[%clk 0:00:08.5]} 33. Qb6+ {[%clk
0:00:48.3]} 33... Nxb6 {[%clk 0:00:07.6]} 34. f6 {[%clk 0:00:47.8]} 34... Qe3+
{[%clk 0:00:06.2]} 35. Kb1 {[%clk 0:00:48.3]} 35... Rg2 {[%clk 0:00:05.3]} 36.
f7 {[%clk 0:00:45]} 36... Qe1 {[%clk 0:00:03.7]} 37. f8=Q+ {[%clk 0:00:38]}
37... Rxf8 {[%clk 0:00:03.9]} 38. Rxe1 {[%clk 0:00:37.1]} 38... Rff2 {[%clk
0:00:04.6]} 39. Re8 {[%clk 0:00:34.1]} 39... Rxb2+ {[%clk 0:00:04.4]} 40. Kc1
{[%clk 0:00:32.6]} 40... Nd5 {[%clk 0:00:04.5]} 41. Rd8+ {[%clk 0:00:26]} 41...
Kc6 {[%clk 0:00:04.7]} 42. Rc8+ {[%clk 0:00:24.3]} 42... Kd6 {[%clk 0:00:04.2]}
43. Rd8+ {[%clk 0:00:24.4]} 43... Kc6 {[%clk 0:00:03]} 44. Rc8+ {[%clk
0:00:24.6]} 44... Kb6 {[%clk 0:00:02.3]} 45. Rb8+ {[%clk 0:00:24.1]} 45... Kc6
{[%clk 0:00:01.6]} 46. Rxb2 {[%clk 0:00:23.6]} 46... Rg1+ {[%clk 0:00:01.2]} 47.
Kc2 {[%clk 0:00:22.3]} 1-0

[Event "Late-Titled-Tuesday-Blitz-September-26-2023"]
[Site "Chess.com"]
[Date "2023.09.26"]
[Round "9"]
[White "cthake"]
[Black "AlexandraBotez"]
[Result "0-1"]
[WhiteElo "1904"]
[BlackElo "2240"]
[TimeControl "180+1"]
[EndTime "15:41:15 PDT"]
[Termination "AlexandraBotez won on time"]

1. e4 {[%clk 0:03:00.9]} 1... e6 {[%clk 0:02:51]} 2. d4 {[%clk 0:02:59.6]} 2...
d5 {[%clk 0:02:46]} 3. Nc3 {[%clk 0:02:55.6]} 3... Nf6 {[%clk 0:02:45]} 4. Bg5
{[%clk 0:02:43]} 4... Bb4 {[%clk 0:02:41]} 5. e5 {[%clk 0:02:40.9]} 5... h6
{[%clk 0:02:40.7]} 6. Bd2 {[%clk 0:02:38.6]} 6... Bxc3 {[%clk 0:02:39.9]} 7.
bxc3 {[%clk 0:02:38.1]} 7... Ne4 {[%clk 0:02:40.2]} 8. Qg4 {[%clk 0:02:36.2]}
8... Kf8 {[%clk 0:02:39.4]} 9. h4 {[%clk 0:02:34.4]} 9... Nxd2 {[%clk
0:02:37.6]} 10. Kxd2 {[%clk 0:02:33.9]} 10... c5 {[%clk 0:02:38.3]} 11. Bd3
{[%clk 0:02:20.9]} 11... c4 {[%clk 0:02:36.5]} 12. Be2 {[%clk 0:02:17.6]} 12...
Nc6 {[%clk 0:02:36.5]} 13. Qf4 {[%clk 0:01:59.6]} 13... Bd7 {[%clk 0:02:27.7]}
14. Rh3 {[%clk 0:01:40]} 14... Qe7 {[%clk 0:02:24.8]} 15. Bh5 {[%clk 0:01:33.8]}
15... Kg8 {[%clk 0:02:23.1]} 16. Rg3 {[%clk 0:01:28.9]} 16... Rh7 {[%clk
0:02:04.8]} 17. Nf3 {[%clk 0:01:22]} 17... Rf8 {[%clk 0:01:58.2]} 18. Qe3 {[%clk
0:01:03.7]} 18... Be8 {[%clk 0:01:55.4]} 19. Nh2 {[%clk 0:00:59]} 19... f5
{[%clk 0:01:55]} 20. Bxe8 {[%clk 0:00:55.2]} 20... Qxe8 {[%clk 0:01:53.6]} 21.
Qf4 {[%clk 0:00:51.2]} 21... b5 {[%clk 0:01:51.3]} 22. Nf3 {[%clk 0:00:50.1]}
22... b4 {[%clk 0:01:50.2]} 23. Rb1 {[%clk 0:00:45.1]} 23... a5 {[%clk
0:01:48.8]} 24. Nh2 {[%clk 0:00:35.4]} 24... Qe7 {[%clk 0:01:41.2]} 25. h5
{[%clk 0:00:34.6]} 25... bxc3+ {[%clk 0:01:39.9]} 26. Rxc3 {[%clk 0:00:32.9]}
26... Qa7 {[%clk 0:01:24.8]} 27. Nf3 {[%clk 0:00:30.6]} 27... Nb4 {[%clk
0:01:19.2]} 28. a3 {[%clk 0:00:28.8]} 28... Na2 {[%clk 0:01:17.8]} 29. Re3
{[%clk 0:00:27.3]} 29... c3+ {[%clk 0:01:17.3]} 30. Kd1 {[%clk 0:00:24.5]} 30...
Rb8 {[%clk 0:01:11.8]} 31. Rxb8+ {[%clk 0:00:19.7]} 31... Qxb8 {[%clk
0:01:11.8]} 32. Ke2 {[%clk 0:00:19.2]} 32... Qb1 {[%clk 0:01:10.9]} 33. Kd3
{[%clk 0:00:18.6]} 33... Qb2 {[%clk 0:01:07.5]} 34. Re2 {[%clk 0:00:15.2]} 34...
Nc1+ {[%clk 0:01:07.1]} 35. Ke3 {[%clk 0:00:13]} 35... Nxe2 {[%clk 0:00:55.9]}
36. Qh4 {[%clk 0:00:12.6]} 36... f4+ {[%clk 0:00:48.3]} 37. Kxe2 {[%clk
0:00:11]} 37... Qxc2+ {[%clk 0:00:46.4]} 38. Kf1 {[%clk 0:00:11.2]} 38... Qb1+
{[%clk 0:00:23.5]} 39. Ke2 {[%clk 0:00:09]} 39... Qb2+ {[%clk 0:00:22.6]} 40.
Kf1 {[%clk 0:00:08.8]} 40... Qb5+ {[%clk 0:00:22.1]} 41. Kg1 {[%clk 0:00:08.2]}
41... Qe8 {[%clk 0:00:21.3]} 42. Ne1 {[%clk 0:00:04.7]} 42... g5 {[%clk
0:00:20.4]} 43. Qg4 {[%clk 0:00:03.6]} 43... Rc7 {[%clk 0:00:19.9]} 44. Nc2
{[%clk 0:00:01.6]} 44... Qf7 {[%clk 0:00:20.2]} 45. g3 {[%clk 0:00:01.4]} 45...
fxg3 {[%clk 0:00:18.8]} 46. fxg3 {[%clk 0:00:01.4]} 46... Rb7 {[%clk 0:00:17.8]}
0-1

[Event "Late-Titled-Tuesday-Blitz-September-26-2023"]
[Site "Chess.com"]
[Date "2023.09.26"]
[Round "9"]
[White "emeli_chess"]
[Black "Rainbow2014"]
[Result "0-1"]
[WhiteElo "2358"]
[BlackElo "2427"]
[TimeControl "180+1"]
[EndTime "15:41:18 PDT"]
[Termination "Rainbow2014 won on time"]

1. d4 {[%clk 0:03:00.9]} 1... Nf6 {[%clk 0:02:58.1]} 2. c4 {[%clk 0:03:01]} 2...
e6 {[%clk 0:02:56]} 3. Nc3 {[%clk 0:03:01.1]} 3... Bb4 {[%clk 0:02:54]} 4. Qc2
{[%clk 0:03:01.3]} 4... O-O {[%clk 0:02:53.6]} 5. e4 {[%clk 0:03:01.2]} 5... d5
{[%clk 0:02:53.9]} 6. e5 {[%clk 0:03:01.3]} 6... Ne4 {[%clk 0:02:54.2]} 7. Bd3
{[%clk 0:03:00.1]} 7... c5 {[%clk 0:02:54.2]} 8. Nf3 {[%clk 0:02:59.9]} 8...
cxd4 {[%clk 0:02:54.3]} 9. Nxd4 {[%clk 0:03:00.3]} 9... Nd7 {[%clk 0:02:54.9]}
10. Bf4 {[%clk 0:03:00.5]} 10... Qh4 {[%clk 0:02:55.1]} 11. g3 {[%clk
0:03:00.9]} 11... Qh5 {[%clk 0:02:55.5]} 12. O-O {[%clk 0:03:00.6]} 12... g5
{[%clk 0:02:55.9]} 13. cxd5 {[%clk 0:02:59.5]} 13... Bxc3 {[%clk 0:02:54.9]} 14.
bxc3 {[%clk 0:02:57.9]} 14... exd5 {[%clk 0:02:55.2]} 15. e6 {[%clk 0:02:51.1]}
15... gxf4 {[%clk 0:02:30.2]} 16. exd7 {[%clk 0:02:42.8]} 16... Bxd7 {[%clk
0:02:31.1]} 17. Bxe4 {[%clk 0:02:42.3]} 17... dxe4 {[%clk 0:02:28.3]} 18. Qxe4
{[%clk 0:02:39.7]} 18... Bh3 {[%clk 0:02:18.2]} 19. Rfe1 {[%clk 0:02:33.1]}
19... fxg3 {[%clk 0:02:18.5]} 20. hxg3 {[%clk 0:02:30]} 20... Rae8 {[%clk
0:02:16.3]} 21. Qxe8 {[%clk 0:02:25.1]} 21... Rxe8 {[%clk 0:02:17.2]} 22. Rxe8+
{[%clk 0:02:25]} 22... Kg7 {[%clk 0:02:18.1]} 23. Rae1 {[%clk 0:02:17.1]} 23...
Qd5 {[%clk 0:02:16.7]} 24. R1e4 {[%clk 0:02:07.6]} 24... Qxa2 {[%clk 0:02:12.4]}
25. g4 {[%clk 0:02:01.9]} 25... Qa1+ {[%clk 0:02:08.2]} 26. Kh2 {[%clk
0:01:58.3]} 26... Qf1 {[%clk 0:02:08.1]} 27. Kg3 {[%clk 0:01:42.9]} 27... Qg2+
{[%clk 0:02:06.7]} 28. Kh4 {[%clk 0:01:42]} 28... Qh2 {[%clk 0:01:46.2]} 29.
Nf5+ {[%clk 0:01:22.7]} 29... Kf6 {[%clk 0:01:46.6]} 30. Kh5 {[%clk 0:00:30.1]}
30... Bg2+ {[%clk 0:01:29.1]} 31. Nh4 {[%clk 0:00:30.2]} 31... Bxe4 {[%clk
0:01:29.1]} 32. Rxe4 {[%clk 0:00:30.3]} 32... Qxf2 {[%clk 0:01:12.2]} 33. Nf5
{[%clk 0:00:18.6]} 33... Qh2+ {[%clk 0:01:07.7]} 34. Nh4 {[%clk 0:00:18.9]}
34... Kg7 {[%clk 0:01:04.4]} 35. Kg5 {[%clk 0:00:15.7]} 35... Qd2+ {[%clk
0:00:57.1]} 36. Kf5 {[%clk 0:00:14.1]} 36... Qxc3 {[%clk 0:00:49.5]} 37. g5
{[%clk 0:00:12.2]} 37... a5 {[%clk 0:00:46.1]} 38. Kg4 {[%clk 0:00:11.9]} 38...
Qc2 {[%clk 0:00:37]} 39. Nf5+ {[%clk 0:00:11]} 39... Kf8 {[%clk 0:00:37.5]} 40.
Rd4 {[%clk 0:00:10.9]} 40... Qc8 {[%clk 0:00:32.5]} 41. Kf4 {[%clk 0:00:08.9]}
41... b5 {[%clk 0:00:29.5]} 42. Nd6 {[%clk 0:00:08]} 42... Qb8 {[%clk
0:00:29.6]} 43. Kf5 {[%clk 0:00:08]} 43... b4 {[%clk 0:00:29.6]} 44. Kf6 {[%clk
0:00:07.3]} 44... Qd8+ {[%clk 0:00:27.7]} 45. Kf5 {[%clk 0:00:07.1]} 45... Qd7+
{[%clk 0:00:26.6]} 46. Kf4 {[%clk 0:00:05.8]} 46... b3 {[%clk 0:00:26]} 47. Nf5
{[%clk 0:00:03.7]} 47... Qc7+ {[%clk 0:00:25.4]} 48. Kg4 {[%clk 0:00:03.5]}
48... b2 {[%clk 0:00:24.4]} 0-1